bitfinex/quotes_BTCUSD_20251012
["timestamp","ask_amount","ask_price","bid_price","bid_amount"]
[1760228681427,0.03225131,110360.0,110350.0,0.37915487]
[1760228682270,0.03225131,110360.0,110350.0,0.40930677]
[1760228684210,0.03225131,110360.0,110350.0,0.8700952]
[1760228684937,0.03225131,110360.0,110350.0,0.8690952]
[1760228685431,4.672045,110380.0,110370.0,0.18120866]
[1760228685680,4.672045,110380.0,110370.0,0.33436641]
[1760228685681,4.68872899,110380.0,110370.0,0.33436641]
[1760228685914,0.01668399,110380.0,110370.0,0.7702889]
[1760228686128,0.53812,110410.0,110370.0,0.7702889]
[1760228686129,4.74607072,110410.0,110400.0,0.18115942]
[1760228686351,4.40607072,110410.0,110400.0,0.32305942]
[1760228686561,4.38685006,110410.0,110400.0,0.37673257]
[1760228686769,0.39480506,110410.0,110400.0,0.37673257]
[1760228686978,4.72685006,110410.0,110400.0,0.37673257]
[1760228687192,0.39480506,110410.0,110400.0,0.37673257]
[1760228687408,5.13262065,110410.0,110400.0,0.37673257]
[1760228687620,4.72685006,110410.0,110400.0,0.37673257]
[1760228688267,4.74609004,110410.0,110400.0,0.37673257]
[1760228688536,4.77707667,110410.0,110400.0,0.37673257]
[1760228688752,4.41783669,110410.0,110400.0,0.37673257]
[1760228688968,4.75783669,110410.0,110400.0,0.37673257]
[1760228689181,4.75783669,110410.0,110400.0,0.37773257]
[1760228689406,0.08579169,110410.0,110400.0,0.37773257]
[1760228689628,5.21881616,110410.0,110400.0,0.25914942]
[1760228689856,5.24519926,110410.0,110400.0,0.001]
[1760228690116,5.2644503,110410.0,110400.0,0.001]
[1760228690331,5.44559331,110410.0,110400.0,0.001]
[1760228690541,5.47768535,110410.0,110400.0,0.001]
[1760228690756,4.672045,110400.0,110390.0,0.18117563]
[1760228690976,5.19302707,110400.0,110390.0,0.18117563]
[1760228691208,0.86098207,110400.0,110390.0,0.18117563]
[1760228691626,5.19302707,110400.0,110390.0,0.18117563]
[1760228692250,0.86098207,110400.0,110390.0,0.18117563]
[1760228692695,5.19302707,110400.0,110390.0,0.18117563]
[1760228692896,4.7320476,110400.0,110390.0,0.25816563]
[1760228693105,5.19302707,110400.0,110390.0,0.18117563]
[1760228694270,4.7320476,110400.0,110390.0,0.36346674]
[1760228694494,4.7079811,110400.0,110390.0,0.32307563]
[1760228694913,0.3759361,110400.0,110390.0,0.32307563]
[1760228695132,4.68873006,110400.0,110390.0,0.32307563]
[1760228695344,4.7079811,110400.0,110390.0,0.32307563]
[1760228695754,5.16896057,110400.0,110390.0,0.18117563]
[1760228695965,0.83691557,110400.0,110390.0,0.25816563]
[1760228696165,5.16896057,110400.0,110390.0,0.25994619]
[1760228696980,0.83691557,110400.0,110390.0,0.25994619]
[1760228697183,5.16896057,110400.0,110390.0,0.25994619]
[1760228697799,5.16896057,110400.0,110390.0,0.00178056]
[1760228698007,5.19302707,110400.0,110390.0,0.22743639]
[1760228698221,5.19302707,110400.0,110390.0,0.18295639]
[1760228698428,5.19302707,110400.0,110390.0,0.27449657]
[1760228698648,5.19302707,110400.0,110390.0,0.30700657]
[1760228698863,5.16896057,110400.0,110390.0,0.30700657]
[1760228699284,5.16896057,110400.0,110390.0,0.25994639]
[1760228699494,5.16806365,110400.0,110390.0,0.25994639]
[1760228700479,5.16806365,110400.0,110390.0,0.32485639]
[1760228700679,4.69129604,110400.0,110390.0,0.32485639]
[1760228700873,0.35925104,110400.0,110390.0,0.32485639]
[1760228701121,0.35925104,110400.0,110390.0,0.37961557]
[1760228701122,4.672045,110400.0,110390.0,0.37961557]
[1760228701293,4.69129604,110400.0,110390.0,0.37961557]
[1760228701509,0.35925104,110400.0,110390.0,0.37961557]
[1760228701851,4.672045,110400.0,110390.0,0.32485639]
[1760228702074,5.15227551,110400.0,110390.0,0.25994639]
[1760228702543,5.15227551,110400.0,110390.0,0.26094639]
[1760228702782,5.15227551,110400.0,110390.0,0.32785639]
[1760228702988,5.15227551,110400.0,110390.0,0.32885639]
[1760228703202,0.35925104,110400.0,110390.0,0.38391557]
[1760228703409,4.672045,110400.0,110390.0,0.38391557]
[1760228703617,4.69129604,110400.0,110390.0,0.38391557]
[1760228703824,4.35129604,110400.0,110390.0,0.38391557]
[1760228704014,4.332045,110400.0,110390.0,0.38391557]
[1760228704265,4.672045,110400.0,110390.0,0.38391557]
[1760228706568,4.672045,110400.0,110390.0,0.32885639]
[1760228707452,0.09700663,110410.0,110400.0,0.18115942]
[1760228707703,0.09700663,110410.0,110400.0,0.27902942]
[1760228707951,0.09700663,110410.0,110400.0,0.32075942]
[1760228710123,0.09700663,110410.0,110400.0,0.32175942]
[1760228710329,0.09700663,110410.0,110400.0,0.37931913]
[1760228711167,5.23011646,110410.0,110400.0,0.32275942]
[1760228711398,5.23011646,110410.0,110400.0,0.07469]
[1760228711626,0.89807146,110410.0,110400.0,0.25584942]
[1760228711812,5.23011646,110410.0,110400.0,0.002]
[1760228712047,5.23011646,110410.0,110400.0,0.001]
[1760228712446,5.23011646,110410.0,110400.0,0.002]
[1760228712651,5.24938161,110410.0,110400.0,0.002]
[1760228712809,5.24938161,110410.0,110400.0,0.00218693]
[1760228713329,5.26610607,110410.0,110400.0,0.00118693]
[1760228713738,0.93406107,110410.0,110400.0,0.00118693]
[1760228713995,5.49820597,110410.0,110400.0,0.00218693]
[1760228714196,1.14182864,110410.0,110400.0,0.00118693]
[1760228714411,1.60289347,110410.0,110400.0,0.00118693]
[1760228714627,5.96071926,110410.0,110400.0,0.00118693]
[1760228714846,5.13310983,110380.0,110370.0,0.00015084]
[1760228715077,5.31430207,110380.0,110370.0,0.00015084]
[1760228715323,5.34092663,110380.0,110370.0,0.00015084]
[1760228715533,1.13870074,110380.0,110370.0,0.00015084]
[1760228715986,5.30881359,110380.0,110370.0,0.00015084]
[1760228716662,5.49000583,110380.0,110370.0,0.00015084]
[1760228716873,1.15796083,110380.0,110370.0,0.00015084]
[1760228717092,5.49000583,110380.0,110370.0,0.00015084]
[1760228718161,5.50671934,110380.0,110370.0,0.00015084]
[1760228719429,5.50669885,110380.0,110370.0,0.00015084]
[1760228719632,5.59541819,110380.0,110370.0,0.00015084]
[1760228720077,5.50669885,110380.0,110370.0,0.00015084]
[1760228720492,5.50669885,110380.0,110370.0,0.0019319]
[1760228720930,1.17465385,110380.0,110370.0,0.0019319]
[1760228721136,5.50669885,110380.0,110370.0,0.0019319]
[1760228721555,1.17465385,110380.0,110370.0,0.0019319]
[1760228721769,5.59541819,110380.0,110370.0,0.0019319]
[1760228722179,1.26337319,110380.0,110370.0,0.0019319]
[1760228722409,5.59541819,110380.0,110370.0,0.0019319]
[1760228722622,1.26337319,110380.0,110370.0,0.0019319]
[1760228722904,5.59541819,110380.0,110370.0,0.0019319]
[1760228723535,5.50669885,110380.0,110370.0,0.0019319]
[1760228723747,4.91581491,110380.0,110370.0,0.0019319]
[1760228723960,5.50667001,110380.0,110370.0,0.0019319]
[1760228724673,5.48004545,110380.0,110370.0,0.0019319]
[1760228724867,5.46338127,110380.0,110370.0,0.0019319]
[1760228726122,1.18451912,110380.0,110370.0,0.0019319]
[1760228726342,5.46338127,110380.0,110370.0,0.0019319]
[1760228726678,5.48003513,110380.0,110370.0,0.0019319]
[1760228728716,5.46338127,110380.0,110370.0,0.0019319]
[1760228729142,1.13133627,110380.0,110370.0,0.0019319]
[1760228729327,5.46338127,110380.0,110370.0,0.0019319]
[1760228729623,1.14454311,110380.0,110370.0,0.0019319]
[1760228729836,5.46338127,110380.0,110370.0,0.0019319]
[1760228731347,0.52122508,110360.0,110350.0,0.0004]
[1760228731580,5.44430494,110360.0,110350.0,0.0004]
[1760228731783,5.26307986,110360.0,110350.0,0.07413]
[1760228731964,0.93103486,110360.0,110350.0,0.07413]
[1760228732194,5.26307986,110360.0,110350.0,0.091482]
[1760228732961,0.34015092,110360.0,110350.0,0.15908415]
[1760228733163,5.26307986,110360.0,110350.0,0.09225415]
[1760228733615,0.93103486,110360.0,110350.0,0.15908415]
[1760228733813,5.26307986,110360.0,110350.0,0.34032565]
[1760228733933,4.67219592,110360.0,110350.0,0.3222015]
[1760228734327,4.33219592,110360.0,110350.0,0.37580315]
[1760228734973,4.67219592,110360.0,110350.0,0.37680315]
[1760228735192,4.67219592,110360.0,110350.0,0.3232015]
[1760228735613,4.67219592,110360.0,110350.0,0.3222015]
[1760228735837,4.67219592,110360.0,110350.0,0.3232015]
[1760228736245,4.67219592,110360.0,110350.0,0.3242015]
[1760228736870,4.67219592,110360.0,110350.0,0.3232015]
[1760228737086,4.67219592,110360.0,110350.0,0.37909089]
[1760228737948,0.00015092,110360.0,110350.0,0.40924279]
[1760228738614,0.00015092,110360.0,110350.0,0.35554114]
[1760228743971,4.332045,110380.0,110370.0,0.18120866]
[1760228744159,4.332045,110380.0,110370.0,0.32053866]
[1760228744712,4.332045,110390.0,110370.0,0.32959909]
[1760228744914,0.770993,110380.0,110370.0,0.26627909]
[1760228745171,0.770993,110380.0,110370.0,0.31522338]
[1760228745574,0.770993,110380.0,110370.0,0.37854338]
[1760228746836,0.770993,110380.0,110370.0,0.37954338]
[1760228747041,0.770993,110380.0,110370.0,0.37854338]
[1760228747477,0.770993,110380.0,110370.0,0.37954338]
[1760228747677,0.770993,110380.0,110370.0,0.40969528]
[1760228747885,0.770993,110380.0,110370.0,0.40869528]
[1760228748299,0.770993,110380.0,110370.0,0.40969528]
[1760228748510,0.770993,110380.0,110370.0,0.41069528]
[1760228748714,0.770993,110380.0,110370.0,0.40969528]
[1760228749127,0.770993,110380.0,110370.0,0.41069528]
[1760228749958,1.110993,110380.0,110370.0,0.41069528]
[1760228750164,0.34,110380.0,110370.0,0.41069528]
[1760228751225,4.672045,110380.0,110370.0,0.14133]
[1760228751429,5.26292894,110380.0,110370.0,0.14133]
[1760228752049,0.93088394,110380.0,110370.0,0.14133]
[1760228752255,5.26292894,110380.0,110370.0,0.14133]
[1760228752458,5.26292894,110380.0,110370.0,0.14033]
[1760228752669,4.672045,110380.0,110370.0,0.14033]
[1760228752872,4.672045,110380.0,110370.0,0.14133]
[1760228753527,5.26292894,110380.0,110370.0,0.14133]
[1760228754293,4.672045,110380.0,110370.0,0.17693334]
[1760228755577,4.672045,110380.0,110370.0,0.358142]
[1760228756411,4.672045,110380.0,110370.0,0.32253866]
[1760228756613,4.672045,110380.0,110370.0,0.14133]
[1760228757670,5.26292894,110380.0,110370.0,0.14133]
[1760228758071,4.672045,110380.0,110370.0,0.32253866]
[1760228762510,5.03279581,110380.0,110370.0,0.32253866]
[1760228762715,5.03279581,110380.0,110370.0,0.37626287]
[1760228763100,4.672045,110380.0,110370.0,0.37626287]
[1760228763300,5.03279581,110380.0,110370.0,0.37626287]
[1760228763907,4.672045,110380.0,110370.0,0.37626287]
[1760228765156,5.03281383,110380.0,110370.0,0.37626287]
[1760228766773,5.03281383,110380.0,110370.0,0.14133]
[1760228766986,5.0622624,110380.0,110370.0,0.14133]
[1760228768037,5.08888696,110380.0,110370.0,0.07801]
[1760228768254,5.05943839,110380.0,110370.0,0.07801]
[1760228768463,0.72739339,110380.0,110370.0,0.07801]
[1760228768704,5.07875631,110380.0,110370.0,0.07801]
[1760228768907,0.76347931,110380.0,110370.0,0.07801]
[1760228769112,5.09552431,110380.0,110370.0,0.07701]
[1760228769969,5.06889975,110380.0,110370.0,0.07701]
[1760228770192,5.05213175,110380.0,110370.0,0.07701]
[1760228770603,5.05213175,110380.0,110370.0,0.07601]
[1760228771022,0.72008675,110380.0,110370.0,0.07601]
[1760228771228,5.05213175,110380.0,110370.0,0.07601]
[1760228772518,5.03281383,110380.0,110370.0,0.07601]
[1760228772725,4.672045,110380.0,110370.0,0.15855838]
[1760228772926,4.672045,110380.0,110370.0,0.09346838]
[1760228772927,5.03281383,110380.0,110370.0,0.09346838]
[1760228773337,5.03281383,110380.0,110370.0,0.07601]
[1760228773964,0.70076883,110380.0,110370.0,0.07601]
[1760228774167,5.03281383,110380.0,110370.0,0.07601]
[1760228774587,4.672045,110370.0,110360.0,0.03348381]
[1760228774799,0.70076883,110370.0,110360.0,0.03348381]
[1760228775003,5.03281383,110370.0,110360.0,0.09857381]
[1760228775211,5.03281383,110370.0,110360.0,0.14031381]
[1760228775900,5.03281383,110370.0,110360.0,0.14131381]
[1760228776978,0.70076883,110370.0,110360.0,0.14231381]
[1760228777155,5.03281383,110370.0,110360.0,0.14231381]
[1760228777532,5.4840789,110370.0,110360.0,0.14231381]
[1760228777919,1.1520339,110370.0,110360.0,0.14231381]
[1760228778377,5.4840789,110370.0,110360.0,0.17895848]
[1760228778524,1.1520339,110370.0,110360.0,0.17895848]
[1760228778736,5.4840789,110370.0,110360.0,0.17895848]
[1760228779694,5.4840789,110370.0,110360.0,0.14231381]
[1760228780339,1.1520339,110370.0,110360.0,0.14231381]
[1760228780569,5.4840789,110370.0,110360.0,0.14231381]
[1760228780787,1.1520339,110370.0,110360.0,0.14231381]
[1760228781221,5.4840789,110370.0,110360.0,0.14231381]
[1760228781432,5.4840789,110370.0,110360.0,0.17895848]
[1760228782114,4.332045,110380.0,110370.0,0.18120725]
[1760228782318,4.332045,110380.0,110370.0,0.25553725]
[1760228782542,4.73806195,110380.0,110370.0,0.13942]
[1760228782746,4.73806195,110380.0,110370.0,0.32062866]
[1760228782948,5.07806195,110380.0,110370.0,0.34945811]
[1760228784495,5.07806195,110380.0,110370.0,0.32062866]
[1760228784690,5.07806195,110380.0,110370.0,0.32262866]
[1760228787432,4.672045,110380.0,110370.0,0.32262866]
[1760228787836,5.07806195,110380.0,110370.0,0.32262866]
[1760228788825,0.34,110380.0,110370.0,0.32262866]
[1760228789073,0.74601695,110380.0,110370.0,0.32262866]
[1760228789980,0.34,110380.0,110370.0,0.35278056]
[1760228790188,0.00015132,110390.0,110380.0,0.21134414]
[1760228790427,0.34015132,110390.0,110380.0,0.30902414]
[1760228790645,0.34015132,110390.0,110380.0,0.35076414]
[1760228790853,0.74616827,110390.0,110380.0,0.35076414]
[1760228791543,0.00015132,110390.0,110380.0,0.35076414]
[1760228791753,0.00015132,110390.0,110380.0,0.75778109]
[1760228792376,0.00015132,110390.0,110380.0,0.88278107]
[1760228792592,0.00015132,110390.0,110380.0,0.88378107]
[1760228793075,0.00015132,110390.0,110380.0,0.47576412]
[1760228793282,0.00015132,110390.0,110380.0,0.88578107]
[1760228793693,0.00015132,110390.0,110380.0,0.88378107]
[1760228794164,0.00015132,110390.0,110380.0,0.88578107]
[1760228794362,0.00015132,110390.0,110380.0,0.47976412]
[1760228794799,5.07821327,110390.0,110380.0,0.14342]
[1760228795213,5.07821327,110390.0,110380.0,0.07833]
[1760228795416,5.07821327,110390.0,110380.0,0.07633]
[1760228795844,5.07821327,110390.0,110380.0,0.07733]
[1760228796056,5.07880689,110390.0,110380.0,0.137]
[1760228796257,5.07880689,110390.0,110380.0,0.136]
[1760228796464,5.07880689,110390.0,110380.0,0.15395651]
[1760228796678,5.07880689,110390.0,110380.0,0.137]
[1760228797106,0.21020494,110390.0,110380.0,0.34934414]
[1760228797366,0.00059362,110390.0,110380.0,0.34934414]
[1760228798712,0.00059362,110390.0,110380.0,0.34834414]
[1760228799133,0.00059362,110390.0,110380.0,0.34734414]
[1760228799408,0.00059362,110390.0,110380.0,0.35134414]
[1760228800033,0.00059362,110390.0,110380.0,0.34934414]
[1760228800245,0.00059362,110390.0,110380.0,0.35134414]
[1760228802386,0.34059362,110390.0,110380.0,0.35134414]
[1760228804744,0.34059362,110390.0,110380.0,0.37860897]
[1760228805640,0.00059362,110390.0,110380.0,0.37860897]
[1760228808916,0.34059362,110390.0,110380.0,0.37860897]
[1760228809124,0.80159119,110390.0,110380.0,0.19741673]
[1760228809330,0.80159119,110390.0,110380.0,0.42982703]
[1760228810058,0.34059362,110390.0,110380.0,0.42982703]
[1760228810794,0.34059362,110390.0,110380.0,0.42782703]
[1760228811002,0.17250515,110390.0,110380.0,0.42882703]
[1760228811173,0.17250515,110390.0,110380.0,0.42682703]
[1760228811585,0.46099757,110400.0,110380.0,0.43688664]
[1760228811764,4.332045,110390.0,110380.0,0.37521664]
[1760228812389,4.332045,110390.0,110380.0,0.43811664]
[1760228812842,4.672045,110390.0,110380.0,0.43811664]
[1760228812998,0.34,110390.0,110380.0,0.43811664]
[1760228813823,0.34,110390.0,110380.0,0.43911664]
[1760228814226,0.34,110390.0,110380.0,0.43811664]
[1760228814685,0.34,110390.0,110380.0,0.43911664]
[1760228815609,5.13304257,110390.0,110380.0,0.24886479]
[1760228817921,5.13304257,110390.0,110380.0,0.22159996]
[1760228818294,0.34,110390.0,110380.0,0.22159996]
[1760228819459,0.74577681,110390.0,110380.0,0.22159996]
[1760228823357,5.07782181,110390.0,110380.0,0.19144806]
[1760228823575,5.07782181,110390.0,110380.0,0.14023]
[1760228824899,5.07782181,110390.0,110380.0,0.07633]
[1760228824900,5.12050181,110390.0,110380.0,0.07633]
[1760228825106,5.60698862,110390.0,110380.0,0.002]
[1760228825313,5.60698862,110390.0,110380.0,0.001]
[1760228825522,5.78816445,110390.0,110380.0,0.001]
[1760228825924,5.81291887,110390.0,110380.0,0.001]
[1760228826127,4.672045,110380.0,110370.0,0.03356511]
[1760228826330,5.50359862,110380.0,110370.0,0.03356511]
[1760228826472,5.54627862,110380.0,110370.0,0.07603511]
[1760228827261,5.72747086,110380.0,110370.0,0.03356511]
[1760228827466,5.72747086,110380.0,110370.0,0.00097511]
[1760228827467,5.81257528,110380.0,110370.0,0.00097511]
[1760228827926,5.81257528,110380.0,110370.0,0.00197511]
[1760228828110,5.81257528,110380.0,110370.0,0.00297511]
[1760228828751,5.78782086,110380.0,110370.0,0.00297511]
[1760228828875,1.45577586,110380.0,110370.0,0.00297511]
[1760228829065,5.80710726,110380.0,110370.0,0.00197511]
[1760228829272,5.78782086,110380.0,110370.0,0.00197511]
[1760228829472,5.80709524,110380.0,110370.0,0.00197511]
[1760228829701,5.02216642,110380.0,110370.0,0.00197511]
[1760228829911,4.692045,110380.0,110370.0,0.13261511]
[1760228830112,5.54627862,110380.0,110370.0,0.09166187]
[1760228830572,5.54627862,110380.0,110370.0,0.07357511]
[1760228831571,1.21423362,110380.0,110370.0,0.07357511]
[1760228831771,5.54627862,110380.0,110370.0,0.07357511]
[1760228831972,1.21423362,110380.0,110370.0,0.07357511]
[1760228832205,5.54627862,110380.0,110370.0,0.07357511]
[1760228833198,5.72747086,110380.0,110370.0,0.07357511]
[1760228833461,1.39542586,110380.0,110370.0,0.09166187]
[1760228833626,4.332045,110390.0,110370.0,0.15070187]
[1760228833869,4.73782181,110380.0,110370.0,0.09166187]
[1760228834006,5.07782181,110380.0,110370.0,0.09166187]
[1760228834478,5.07782181,110380.0,110370.0,0.15070187]
[1760228834837,5.07782181,110380.0,110370.0,0.15170187]
[1760228835445,5.48359862,110380.0,110370.0,0.15170187]
[1760228835652,5.48359862,110380.0,110370.0,0.15270187]
[1760228835844,5.07782181,110380.0,110370.0,0.15270187]
[1760228836086,5.07782181,110380.0,110370.0,0.15170187]
[1760228836375,5.48359862,110380.0,110370.0,0.15170187]
[1760228836792,5.73409566,110380.0,110370.0,0.07457511]
[1760228836944,5.73409566,110380.0,110370.0,0.07557511]
[1760228837594,5.73409566,110380.0,110370.0,0.07457511]
[1760228837806,5.73409566,110380.0,110370.0,0.07357511]
[1760228838174,5.79444566,110380.0,110370.0,0.00097511]
[1760228838640,1.46240066,110380.0,110370.0,0.00097511]
[1760228838813,5.73409566,110380.0,110370.0,0.00097511]
[1760228839559,5.28349656,110380.0,110370.0,0.00097511]
[1760228839770,5.70480108,110380.0,110370.0,0.00097511]
[1760228840127,5.7295555,110380.0,110370.0,0.00097511]
[1760228840329,5.72404716,110380.0,110370.0,0.00097511]
[1760228841234,5.3895555,110380.0,110370.0,0.00097511]
[1760228841433,5.36480108,110380.0,110370.0,0.00097511]
[1760228841634,0.31084704,110380.0,110370.0,0.00097511]
[1760228841841,5.00384656,110380.0,110370.0,0.00097511]
[1760228842267,5.38150316,110380.0,110370.0,0.00097511]
[1760228843003,1.04945816,110380.0,110370.0,0.00097511]
[1760228843149,5.74074527,110380.0,110370.0,0.00097511]
[1760228843557,1.40870027,110380.0,110370.0,0.00097511]
[1760228843760,5.74074527,110380.0,110370.0,0.00097511]
[1760228844164,5.72150316,110380.0,110370.0,0.00097511]
[1760228844483,5.74074621,110380.0,110370.0,0.00097511]
[1760228845492,1.40870121,110380.0,110370.0,0.00097511]
[1760228845690,5.74074621,110380.0,110370.0,0.00097511]
[1760228846108,1.40870121,110380.0,110370.0,0.00097511]
[1760228846346,5.74074621,110380.0,110370.0,0.00097511]
[1760228846733,5.01883717,110380.0,110370.0,0.00097511]
[1760228846961,5.37979169,110380.0,110370.0,0.00097511]
[1760228847268,5.74074621,110380.0,110370.0,0.00097511]
[1760228847469,1.40870121,110380.0,110370.0,0.00097511]
[1760228847682,5.74074621,110380.0,110370.0,0.00097511]
[1760228849616,0.96077189,110380.0,110370.0,0.00097511]
[1760228849819,5.29281689,110380.0,110370.0,0.00097511]
[1760228850027,5.11162465,110380.0,110370.0,0.07357511]
[1760228850248,5.0923816,110380.0,110370.0,0.14888962]
[1760228850450,5.27357384,110380.0,110370.0,0.14888962]
[1760228850655,1.00081884,110380.0,110370.0,0.01724962]
[1760228850856,5.33286384,110380.0,110370.0,0.01724962]
[1760228851102,5.33286384,110380.0,110370.0,0.00097511]
[1760228851362,5.35211859,110380.0,110370.0,0.00097511]
[1760228851549,5.33286384,110380.0,110370.0,0.00097511]
[1760228851750,1.02744364,110380.0,110370.0,0.00097511]
[1760228852131,5.35948864,110380.0,110370.0,0.00097511]
[1760228853391,5.37876262,110380.0,110370.0,0.00097511]
[1760228853572,5.73971714,110380.0,110370.0,0.00097511]
[1760228853967,5.0178081,110380.0,110370.0,0.00097511]
[1760228854169,5.37876262,110380.0,110370.0,0.00097511]
[1760228855238,5.73971714,110380.0,110370.0,0.00097511]
[1760228855618,5.76447156,110380.0,110370.0,0.00097511]
[1760228856033,15.73971714,110380.0,110370.0,0.00097511]
[1760228856778,15.74071714,110380.0,110370.0,0.00097511]
[1760228856975,15.76478364,110380.0,110370.0,0.00097511]
[1760228857447,11.43273864,110380.0,110370.0,0.00097511]
[1760228857678,15.76478364,110380.0,110370.0,0.00097511]
[1760228857851,11.43273864,110380.0,110370.0,0.00097511]
[1760228857997,15.76478364,110380.0,110370.0,0.00097511]
[1760228858786,15.85350298,110380.0,110370.0,0.00097511]
[1760228859125,15.86152852,110380.0,110370.0,0.00097511]
[1760228859338,15.77280918,110380.0,110370.0,0.00097511]
[1760228859737,0.52122508,110360.0,110350.0,0.0004]
[1760228859971,1.29876018,110360.0,110350.0,0.0004]
[1760228860175,5.72960518,110360.0,110350.0,0.0004]
[1760228860457,1.39756018,110360.0,110350.0,0.0004]
[1760228860883,5.72965556,110360.0,110350.0,0.0004]
[1760228861415,1.39761056,110360.0,110350.0,0.0004]
[1760228861846,5.72965556,110360.0,110350.0,0.0004]
[1760228862043,5.75376017,110360.0,110350.0,0.0004]
[1760228865322,5.75376017,110360.0,110350.0,0.00218147]
[1760228865955,1.42171517,110360.0,110350.0,0.00218147]
[1760228866189,5.75376017,110360.0,110350.0,0.00218147]
[1760228866602,5.78038497,110360.0,110350.0,0.00218147]
[1760228867869,1.18120009,110360.0,110350.0,0.04318147]
[1760228868072,5.48914048,110360.0,110350.0,0.07270147]
[1760228868660,5.10963048,110360.0,110350.0,0.13381147]
[1760228868866,5.10963048,110360.0,110350.0,0.15030462]
[1760228868867,4.72902596,110360.0,110350.0,0.15030462]
[1760228869073,0.37770698,110360.0,110350.0,0.15030462]
[1760228869275,4.6930499,110360.0,110350.0,0.16842877]
[1760228869479,4.6930499,110360.0,110350.0,0.15030462]
[1760228869699,0.7010049,110360.0,110350.0,0.15030462]
[1760228869924,5.0330499,110360.0,110350.0,0.15030462]
[1760228870150,5.0330499,110360.0,110350.0,0.15130462]
[1760228870618,1.06195942,110360.0,110350.0,0.15130462]
[1760228870889,5.0330499,110360.0,110350.0,0.15230462]
[1760228871168,5.0330499,110360.0,110350.0,0.17042877]
[1760228871378,4.6930499,110360.0,110350.0,0.17042877]
[1760228871589,0.3610049,110360.0,110350.0,0.15230462]
[1760228872919,4.67209538,110360.0,110350.0,0.15230462]
[1760228873127,5.0330499,110360.0,110350.0,0.15230462]
[1760228877584,5.0330499,110360.0,110350.0,0.00418147]
[1760228877585,5.46169922,110360.0,110350.0,0.00418147]
[1760228877807,5.39400442,110360.0,110350.0,0.13581147]
[1760228879945,5.43507442,110360.0,110350.0,0.13581147]
[1760228880170,1.10302942,110360.0,110350.0,0.13581147]
[1760228880382,5.43507442,110360.0,110350.0,0.07470147]
[1760228880585,5.39400442,110360.0,110350.0,0.13581147]
[1760228880993,1.06195942,110360.0,110350.0,0.15250462]
[1760228881404,5.39400442,110360.0,110350.0,0.15250462]
[1760228881654,1.06195942,110360.0,110350.0,0.15250462]
[1760228881857,5.39400442,110360.0,110350.0,0.15250462]
[1760228883610,1.06195942,110360.0,110350.0,0.15250462]
[1760228883727,5.39400442,110360.0,110350.0,0.15250462]
[1760228884936,5.39400442,110360.0,110350.0,0.07470147]
[1760228884937,5.43240442,110360.0,110350.0,0.07470147]
[1760228885157,5.43240442,110360.0,110350.0,0.03370147]
[1760228885359,5.72338655,110360.0,110350.0,0.00418147]
[1760228885591,5.6982743,110360.0,110350.0,0.00418147]
[1760228886013,5.6716495,110360.0,110350.0,0.00418147]
[1760228886153,5.6716495,110360.0,110350.0,0.00318147]
[1760228886348,5.6716495,110360.0,110350.0,0.00218147]
[1760228886573,1.3396045,110360.0,110350.0,0.00218147]
[1760228886777,5.6716495,110360.0,110350.0,0.00218147]
[1760228887890,5.6982743,110360.0,110350.0,0.00218147]
[1760228890621,1.3662293,110360.0,110350.0,0.00218147]
[1760228890822,5.6982743,110360.0,110350.0,0.00218147]
[1760228891383,1.3662293,110360.0,110350.0,0.00218147]
[1760228891598,1.39351208,110360.0,110350.0,0.00218147]
[1760228891801,5.72555708,110360.0,110350.0,0.00218147]
[1760228892075,5.69893228,110360.0,110350.0,0.00218147]
[1760228892886,1.36688728,110360.0,110350.0,0.00218147]
[1760228893226,5.76646928,110360.0,110350.0,0.00218147]
[1760228893426,1.43442428,110360.0,110350.0,0.00218147]
[1760228893626,5.76646928,110360.0,110350.0,0.00218147]
[1760228894581,1.43442428,110360.0,110350.0,0.00218147]
[1760228894725,5.76646928,110360.0,110350.0,0.00218147]
[1760228895749,1.43442428,110360.0,110350.0,0.00218147]
[1760228895950,5.76646928,110360.0,110350.0,0.00218147]
[1760228897384,5.78574733,110360.0,110350.0,0.00218147]
[1760228897558,1.45370233,110360.0,110350.0,0.00218147]
[1760228897979,5.78574733,110360.0,110350.0,0.00218147]
[1760228898389,1.45370233,110360.0,110350.0,0.00218147]
[1760228898626,5.78574733,110360.0,110350.0,0.00218147]
[1760228898825,1.45370233,110360.0,110350.0,0.00218147]
[1760228898989,5.78574733,110360.0,110350.0,0.00218147]
[1760228899199,1.45370233,110360.0,110350.0,0.00218147]
[1760228899401,5.76646928,110360.0,110350.0,0.00218147]
[1760228899606,5.85703234,110360.0,110350.0,0.00218147]
[1760228901093,1.52498734,110360.0,110350.0,0.00218147]
[1760228901243,5.85703234,110360.0,110350.0,0.00218147]
[1760228901664,1.52498734,110360.0,110350.0,0.00218147]
[1760228902037,5.85703234,110360.0,110350.0,0.00218147]
[1760228902658,1.52498734,110360.0,110350.0,0.00218147]
[1760228902922,5.85703234,110360.0,110350.0,0.00218147]
[1760228903425,5.69508228,110360.0,110350.0,0.00218147]
[1760228903630,5.11673143,110360.0,110350.0,0.13174147]
[1760228903839,5.29795651,110360.0,110350.0,0.13174147]
[1760228904045,5.70419256,110360.0,110350.0,0.07304147]
[1760228904245,1.37214756,110360.0,110350.0,0.07304147]
[1760228904448,5.70419256,110360.0,110350.0,0.07304147]
[1760228904651,5.52296748,110360.0,110350.0,0.07304147]
[1760228904853,5.11673143,110360.0,110350.0,0.07304147]
[1760228905219,5.14401247,110360.0,110350.0,0.13174147]
[1760228905418,5.14401247,110360.0,110350.0,0.1499892]
[1760228905619,5.10561247,110360.0,110350.0,0.1499892]
[1760228905824,0.77356747,110360.0,110350.0,0.1499892]
[1760228906034,5.10561247,110360.0,110350.0,0.1499892]
[1760228906431,0.77356747,110360.0,110350.0,0.1499892]
[1760228906703,0.81196747,110360.0,110350.0,0.1499892]
[1760228906872,5.10561247,110360.0,110350.0,0.16811335]
[1760228907517,5.07833143,110360.0,110350.0,0.16811335]
[1760228907672,5.11673143,110360.0,110350.0,0.14986562]
[1760228908080,0.78468643,110360.0,110350.0,0.14986562]
[1760228908284,5.14401153,110360.0,110350.0,0.09116562]
[1760228908478,5.11673143,110360.0,110350.0,0.13174147]
[1760228909688,0.78468643,110360.0,110350.0,0.13174147]
[1760228909867,5.11673143,110360.0,110350.0,0.1499892]
[1760228910066,5.70419256,110360.0,110350.0,0.07304147]
[1760228910298,5.76010256,110360.0,110350.0,0.00218147]
[1760228910456,1.45468236,110360.0,110350.0,0.00218147]
[1760228910663,5.78672736,110360.0,110350.0,0.00218147]
[1760228911689,1.45468236,110360.0,110350.0,0.00218147]
[1760228911897,5.78672736,110360.0,110350.0,0.00218147]
[1760228913419,1.11463198,110360.0,110350.0,0.00218147]
[1760228913637,5.47395708,110360.0,110350.0,0.00218147]
[1760228914397,1.14191208,110360.0,110350.0,0.00218147]
[1760228914593,5.47395708,110360.0,110350.0,0.00218147]